Cogmind - Beta 13 @@@ ROGUE MODE // 2024.04.27 @ 17:56:01 Player: e.v.o Result: Destroyed by Y-54 Guardian with Flak Gun Performance ------------- Evolutions (3) 1500 Regions Visited (6) 1200 Robots Destroyed (58) 290 Value Destroyed (1775) 1775 Prototype IDs (7) 140 Alien Tech Used (0) 0 Bonus (119) 119 TOTAL SCORE: 5024 Bonus ------- High Alert Combat Kills 119 Cogmind --------- Core Integrity 0/700 Matter 300/300 Energy 98/100 System Corruption 8% Temperature Cool (18) Movement Core (100) Ox1 Location -7/Factory Parts ------- > --- POWER (1) -------- (None) > --- PROPULSION (2) --- (None) > --- UTILITY (7) ------ Signal Interpreter > --- WEAPON (3) ------- Chainsword Chainsword > --- INVENTORY (5) ---- (None) Peak State ------------ > --- POWER ------------ Light Nuclear Core > --- PROPULSION ------- Improved Carbon-fiber Leg Improved Titanium Leg > --- UTILITY ---------- Improved Heat Sink Visual Processing Unit Improved Sensor Array Signal Interpreter System Shield System Shield System Shield > --- WEAPON ----------- Cooled Particle Cannon Gauss Rifle Impact Mace > --- INVENTORY -------- Improved Deuterium Engine Carbon-fiber Leg Armored Wheel Gravmag System Medium Armor Plating [Rating: 44] Favorites ----------- Power Improved Ion Engine Engine Improved Ion Engine Power Core Light Nuclear Core Propulsion Aluminum Leg Treads Light Treads Leg Aluminum Leg Wheel Armored Wheel Flight Unit Improved VTOL Module Utility System Shield Device Sensor Array Storage Small Storage Unit Processor Signal Interpreter Hackware System Shield Protection Medium Armor Plating Weapon Shotgun Energy Gun Heavy EM Shotgun Energy Cannon Cooled Particle Cannon Ballistic Gun Shotgun Ballistic Cannon Advanced Assault Cannon Launcher Proton Missile Launcher Impact Weapon Impact Mace Slashing Weapon Mining Claw Build | -11 -10 -9 -8 -7 -7 -7 ------- Run | Yrd Mat Mat Mat Fac Was Fac Slots Evolved 6 | . . 2 2 2 . . Power . | . . . . . . . Propulsion . | . . . . . . . Utility 5 | . . 2 2 1 . . Weapon 1 | . . . . 1 . . Parts Attached 92 | 5 8 16 13 3 . 47 Power 9 | 1 . 1 2 . . 5 Engine 7 | 1 . 1 2 . . 3 Core 2 | . . . . . . 2 Reactor . | . . . . . . . Propulsion 21 | 2 3 2 . . . 14 Treads 3 | 2 1 . . . . . Leg 12 | . 2 2 . . . 8 Wheel 5 | . . . . . . 5 Hover . | . . . . . . . Flight 1 | . . . . . . 1 Utility 26 | 1 2 3 6 1 . 13 Device 13 | . 1 3 2 . . 7 Storage 3 | 1 . . 2 . . . Processor 3 | . 1 . . . . 2 Hackware 4 | . . . 2 1 . 1 Protection 3 | . . . . . . 3 Artifact . | . . . . . . . Weapon 36 | 1 3 10 5 2 . 15 Energy Gun 7 | . 1 . 2 1 . 3 Energy Cannon 2 | . . . . . . 2 Ballistic Gun 15 | 1 2 8 2 1 . 1 Ballistic Cannon 3 | . . . . . . 3 Launcher 1 | . . . . . . 1 Special Weapon . | . . . . . . . Impact Weapon 2 | . . . . . . 2 Slashing Weapon 6 | . . 2 1 . . 3 Piercing Weapon . | . . . . . . . Special Melee Weapon . | . . . . . . . Unidentified Prototypes 7 | . . . 3 . . 4 Parts Lost 25 | . . . . . 5 20 Power 4 | . . . . . . 4 Propulsion 6 | . . . . . 2 4 Utility 12 | . . . . . 2 10 Weapon 3 | . . . . . 1 2 Highest Loss Streak 11 | . . . . . 5 11 To Critical Strikes . | . . . . . . . Average Slot Usage (%) 94 | . 90 100 100 100 75 89 Engine 6 | . 14 11 9 7 5 1 Core 1 | . . . . . . 4 Treads 2 | . 24 . . . . . Leg 14 | . 3 22 18 15 10 12 Device 15 | . 7 22 18 15 10 13 Storage 5 | . 14 11 9 7 5 . Processor 9 | . . 11 9 7 7 11 Hackware 13 | . . . 18 23 20 20 Energy Gun 2 | . 2 . 1 22 9 3 Energy Cannon 2 | . . . . . . 5 Ballistic Gun 10 | . 22 17 16 . 4 3 Ballistic Cannon 1 | . . . . . . 2 Impact Weapon 1 | . . . . . . 4 Slashing Weapon 1 | . . 4 . . . . Naked Turns . | . . . . . . . Heaviest Build 34 | 9 11 20 26 29 29 34 Greatest Support 40 | 40 40 34 34 34 34 38 Greatest Overweight (x) 7 | 2 . . . . . 7 Average Overweight (x) . | . . . . . . . Largest Inventory Capacity 10 | 8 8 8 10 10 10 5 Average Capacity 6 | 7 8 8 9 10 9 5 Most Carried 10 | 5 5 8 10 10 9 5 Average Carried 5 | 2 4 6 8 8 8 3 Final Capacity 10 | 8 8 8 10 10 5 5 Final Carried 10 | 5 5 8 10 9 5 . Class Distribution -------------------- 32% | Hacker-Mutant 22% | Scavenger-Mutant 18% | Mutant 10% | Scavenger-Assassin 9% | Hacker-Skirmisher 3% | Hacker-Gunner Dominant Class ---------------- Mutant | -10/Materials Scavenger-Mutant | -9/Materials Hacker-Mutant | -8/Materials Hacker-Skirmisher | -7/Factory Hacker-Skirmisher | -7/Waste Hacker-Mutant | -7/Factory Resources | -11 -10 -9 -8 -7 -7 -7 ----------- Run | Yrd Mat Mat Mat Fac Was Fac Matter Collected 1881 | 225 54 208 351 . . 1043 Remotely . | . . . . . . . Salvage Created 2178 | . 54 208 301 . . 1615 Parts 105 | . 6 15 18 . . 66 Haulers Intercepted 3 | . . . 2 . . 1 Recyclers Shooed 2 | . . . . . . 2 Parts Field Recycled . | . . . . . . . Retrieved Matter . | . . . . . . . Parts Self-Destructed . | . . . . . . . Prevented . | . . . . . . . Kills | -11 -10 -9 -8 -7 -7 -7 ------- Run | Yrd Mat Mat Mat Fac Was Fac Combat Hostiles Destroyed 32 | . 1 4 5 . . 22 Melee 6 | . . . . . . 6 Guns 12 | . 1 4 5 . . 2 Cannons 8 | . . . . . . 8 AOE 4 | . . . . . . 4 Classes Destroyed 13 | . 2 2 6 . . 3 Worker 5 | . . . 1 . . 4 Builder 6 | . . . . . . 6 Tunneler 1 | . . . 1 . . . Hauler 3 | . . . 2 . . 1 Recycler 5 | . . . 1 . . 4 Mechanic 1 | . . . . . . 1 Watcher 5 | . 1 1 . . . 3 Swarmer 3 | . . . 3 . . . Grunt 20 | . 1 2 1 . . 16 Brawler 2 | . . 1 . . . 1 Sentry 2 | . . 1 . . . 1 Hunter 4 | . . . 1 . . 3 Programmer 1 | . . . . . . 1 Best Kill Streak 11 | . 1 2 2 . . 11 Combat Bots Only 5 | . 1 2 2 . . 5 Max Kills in Single Turn 3 | . 1 2 2 . . 3 Gunslinging 1 | . . 1 . . . . Exploded 2 | . . . . . . 2 Melee 1 | . . . . . . 1 Uniques/NPCs Destroyed . | . . . . . . . Combat | -11 -10 -9 -8 -7 -7 -7 -------- Run | Yrd Mat Mat Mat Fac Was Fac Hostile Shots Fired 433 | . 11 11 62 . 3 346 Missed 140 | . 3 3 24 . . 110 Damage Taken 3820 | . 85 96 470 . 153 3016 Core 852 | . 11 26 112 . 42 661 Absorbed by Shields . | . . . . . . . Regen/Repaired (Parts) 33 | . . 33 . . . . Core Remaining (%) 91 | 100 95 93 79 . . . Volleys Fired 152 | . 16 9 44 . . 83 Largest 3 | . 2 2 2 . . 3 Hottest 133 | . 60 50 50 . . 133 Shots Fired 243 | . 27 18 71 . . 127 Gun 147 | . 27 18 71 . . 31 Cannon 92 | . . . . . . 92 Launcher 4 | . . . . . . 4 Special . | . . . . . . . Kinetic 193 | . 24 18 70 . . 81 Thermal 37 | . 3 . . . . 34 Explosive . | . . . . . . . Electromagnetic 13 | . . . 1 . . 12 Robot Hit Streak 10 | . 4 6 5 . . 10 Robot Miss Streak 9 | . 3 3 5 . . 9 Penetration Max 1 | . . . . . . 1 Secondary Targets 2 | . . 1 1 . . . Max Gunslinging Chain 1 | . . 1 1 . . . Shots Hit Robots 172 | . 14 15 43 . . 100 Core Hits 87 | . 5 10 15 . . 57 Critical Kills . | . . . . . . . Critical Parts Destroyed 7 | . . . . . . 7 Critical Strikes 17 | . . . . . . 17 Blast 5 | . . . . . . 5 Smash 7 | . . . . . . 7 Sever 5 | . . . . . . 5 Melee Attacks 65 | . . 20 1 . . 44 Impact 35 | . . . . . . 35 Slashing 30 | . . 20 1 . . 9 Piercing . | . . . . . . . Sneak Attacks 3 | . . 1 . . . 2 Combat Hostiles . | . . . . . . . Follow-up Attacks 5 | . . . . . . 5 Damage Inflicted 5112 | . 137 254 690 . . 4031 Guns 1518 | . 129 208 690 . . 491 Cannons 1361 | . . . . . . 1361 Explosions 743 | . . . . . . 743 Melee 1482 | . . 46 . . . 1436 Ramming 8 | . 8 . . . . . Kinetic 2169 | . 106 208 662 . . 1193 Thermal 744 | . 23 . . . . 721 Explosive . | . . . . . . . Electromagnetic 709 | . . . 28 . . 681 Impact 1119 | . . . . . . 1119 Slashing 363 | . . 46 . . . 317 Piercing . | . . . . . . . Highest Corruption 8 | . . . . . . 8 Average Corruption 8 | . . . . . . 8 Corruption Purged . | . . . . . . . Corruption Blocked . | . . . . . . . Effects 9 | . . . . . . 9 Message Errors 2 | . . . . . . 2 Matter Fused 2 | . . . . . . 2 Parts Rejected 2 | . . . . . . 2 Data Loss (minor) 2 | . . . . . . 2 Data Loss (major) 1 | . . . . . . 1 Overload Shots 3 | . . . . . . 3 Effects 1 | . . . . . . 1 Short Circuit 1 | . . . . . . 1 Overflow Damage 506 | . . 6 . . . 500 Projectiles 9 | . . . . . . 9 Explosions 108 | . . . . . . 108 Melee 389 | . . 6 . . . 383 Knockbacks 15 | . . . . . . 15 Impact 6 | . . . . . . 6 Kinetic 8 | . . . . . . 8 Secondary 1 | . . . . . . 1 Self-Inflicted Damage 195 | . . . . . . 195 Shots 2 | . . . . . . 2 Rammed 1 | . 1 . . . . . Targets Rammed 1 | . 1 . . . . . Kicked . | . . . . . . . Crushed . | . . . . . . . Highest Temperature 120 | . 12 . . . . 120 Average Temperature 29 | . 6 . . . . 31 Received Heat Transfer 1347 | . 48 45 9 . . 1245 Siege Activations . | . . . . . . . Robots Corrupted . | . . . . . . . Combat Hostiles . | . . . . . . . Parts Fried 14 | . . . . . . 14 Impact Corruptions 11 | . . . . . . 11 Robots Melted . | . . . . . . . Combat Hostiles . | . . . . . . . Parts Melted . | . . . . . . . Heat Transferred 966 | . 50 . . . . 916 Parts Sabotaged . | . . . . . . . Parts Stolen . | . . . . . . . Parts Stripped . | . . . . . . . Power Chain Reactions 3 | . . . . . . 3 Alert | -11 -10 -9 -8 -7 -7 -7 ------- Run | Yrd Mat Mat Mat Fac Was Fac Peak Influence 527 | . 57 129 153 30 25 527 Initial 30 | . . . 19 30 10 . Average 131 | . 28 23 48 30 11 261 Maximum Alert Level 2 | . . . . . . 2 Low Security (%) 75 | 100 100 100 100 100 100 44 Level 1 10 | . . . . . . 24 Level 2 13 | . . . . . . 31 Level 3 . | . . . . . . . Level 4 . | . . . . . . . Level 5 . | . . . . . . . High Security . | . . . . . . . Max Security . | . . . . . . . Squads Dispatched 12 | . 1 2 1 . . 8 Investigation 4 | . 1 2 . . . 1 Extermination 1 | . . . . . . 1 Reinforcement 5 | . . . 1 . . 4 Assault 1 | . . . . . . 1 Garrison 1 | . . . . . . 1 Intercept . | . . . . . . . Searches Triggered . | . . . . . . . Construction Impeded 2 | . . . . . . 2 Haulers Reinforced 1 | . . . . . . 1 Active Scanning Responses . | . . . . . . . Cargo Convoy Interrupts . | . . . . . . . Stealth | -11 -10 -9 -8 -7 -7 -7 --------- Run | Yrd Mat Mat Mat Fac Was Fac Distress Signals 3 | . 1 2 . . . . Communications Jammed . | . . . . . . . Distress Signals . | . . . . . . . Times Spotted 62 | . 4 11 6 . 4 37 Peak Tracking Total 6 | . 2 3 3 . 4 6 Tactical Retreats 8 | . . 1 . . . 7 Traps | -11 -10 -9 -8 -7 -7 -7 ------- Run | Yrd Mat Mat Mat Fac Was Fac Traps Triggered 3 | . 2 . . 1 . . Indirectly . | . . . . . . . Trap Hack Attempts . | . . . . . . . Triggered . | . . . . . . . Disarmed . | . . . . . . . Reprogrammed . | . . . . . . . Reused . | . . . . . . . Traps Extracted . | . . . . . . . Installed . | . . . . . . . Triggered . | . . . . . . . Machines | -11 -10 -9 -8 -7 -7 -7 ---------- Run | Yrd Mat Mat Mat Fac Was Fac Machines Disabled 18 | . . . 1 . . 17 Max in Single Turn 4 | . . . 1 . . 4 Garrison Access 1 | . . . . . . 1 Machines Repaired . | . . . . . . . Machines Dismantled . | . . . . . . . Machines Sabotaged . | . . . . . . . Overloaded Fab Kills . | . . . . . . . Hacking | -11 -10 -9 -8 -7 -7 -7 --------- Run | Yrd Mat Mat Mat Fac Was Fac Machines Accessed 13 | . 1 4 3 1 . 4 Terminals 9 | . 1 3 3 . . 2 Fabricators 1 | . . . . 1 . . Repair Stations 1 | . . 1 . . . . Recycling Units 1 | . . . . . . 1 Scanalyzers . | . . . . . . . Garrison Access 1 | . . . . . . 1 Total Hacks 43 | . 4 12 15 2 . 10 Successful 14 | . 1 5 3 1 . 4 Failed 29 | . 3 7 12 1 . 6 Catastrophic 9 | . 1 . 5 . . 3 Database Lockouts . | . . . . . . . Manual . | . . . . . . . Terminals 32 | . 4 9 15 . . 4 Fabricators 2 | . . . . 2 . . Repair Stations 3 | . . 3 . . . . Recycling Units 1 | . . . . . . 1 Scanalyzers . | . . . . . . . Garrison Access 5 | . . . . . . 5 Terminal Hacks 9 | . 1 3 3 . . 2 Robot Analysis 2 | . 1 . 1 . . . Emergency Access Points 1 | . . . 1 . . . Locate Traps 1 | . . . . . . 1 Surveillance Status 1 | . . . 1 . . . Hauler Manifests 1 | . . 1 . . . . Registered Prototypes 1 | . . 1 . . . . Zone Layout 2 | . . 1 . . . 1 Fabricator Hacks 1 | . . . . 1 . . Network Status 1 | . . . . 1 . . Repair Station Hacks 2 | . . 2 . . . . Scan Component 1 | . . 1 . . . . Repair 1 | . . 1 . . . . Recycling Unit Hacks 1 | . . . . . . 1 Report Inventory 1 | . . . . . . 1 Scanalyzer . | . . . . . . . Garrison Access Hacks 1 | . . . . . . 1 Seal Access 1 | . . . . . . 1 Unauthorized Hacks . | . . . . . . . Terminals . | . . . . . . . Fabricators . | . . . . . . . Repair Stations . | . . . . . . . Recycling Units . | . . . . . . . Scanalyzers . | . . . . . . . Garrison Access . | . . . . . . . Data Cores Recovered . | . . . . . . . Used . | . . . . . . . Hacking Detections 10 | . 1 4 2 1 . 2 Full Trace Events 5 | . 1 2 1 . . 1 Feedback Events . | . . . . . . . Feedback Blocked 1 | . . . . . . 1 Robot Schematics Acquired . | . . . . . . . Robots Built . | . . . . . . . Authchips . | . . . . . . . Time . | . . . . . . . Total Robot Build Rating . | . . . . . . . Part Schematics Acquired . | . . . . . . . Parts Built . | . . . . . . . Authchips . | . . . . . . . Time . | . . . . . . . Total Part Build Rating . | . . . . . . . Parts Repaired 1 | . . 1 . . . . Time 32 | . . 32 . . . . Parts Recycled . | . . . . . . . Recycled Matter . | . . . . . . . Retrieved Matter . | . . . . . . . Retrieved Components . | . . . . . . . Parts Scanalyzed . | . . . . . . . Part Schematics Acquired . | . . . . . . . Parts Damaged . | . . . . . . . Bothacking | -11 -10 -9 -8 -7 -7 -7 ------------ Run | Yrd Mat Mat Mat Fac Was Fac Used RIF Installer . | . . . . . . . Robots Hacked . | . . . . . . . Non-combat . | . . . . . . . Combat . | . . . . . . . Robot Hacks Applied . | . . . . . . . Relay Couplers Released . | . . . . . . . Fabnet Peak Effective % . | . . . . . . . Robots Rewired . | . . . . . . . Allies Hacked . | . . . . . . . Hacks Repelled . | . . . . . . . Allies | -11 -10 -9 -8 -7 -7 -7 -------- Run | Yrd Mat Mat Mat Fac Was Fac Total Allies . | . . . . . . . Largest Group . | . . . . . . . Highest-Rated Group . | . . . . . . . Highest-Rated Ally . | . . . . . . . Total Orders . | . . . . . . . Ally Attacks . | . . . . . . . Total Damage . | . . . . . . . Kills . | . . . . . . . Allies Corrupted . | . . . . . . . Allies Melted . | . . . . . . . Intel | -11 -10 -9 -8 -7 -7 -7 ------- Run | Yrd Mat Mat Mat Fac Was Fac Robot Analysis Total 2 | . 1 . 1 . . . Derelict Logs Recovered . | . . . . . . . Drone Launches . | . . . . . . . Drone Recoveries . | . . . . . . . Exploration | -11 -10 -9 -8 -7 -7 -7 ------------- Run | Yrd Mat Mat Mat Fac Was Fac Turns Passed 4098 | 80 409 994 676 84 67 1788 Spaces Moved 2063 | 45 229 412 398 60 66 853 Core 36 | 7 . . . . 24 5 Treads 237 | 38 199 . . . . . Legs 1620 | . 30 412 398 60 42 678 Wheels 170 | . . . . . . 170 Hover . | . . . . . . . Flight . | . . . . . . . Fastest Speed 50 | 50 120 120 130 130 50 90 Average Speed 127 | 151 154 121 130 130 100 123 Slowest Speed 400 | 160 160 130 130 130 130 400 Overloaded Moves . | . . . . . . . Propulsion Burnouts . | . . . . . . . Robots Hopped . | . . . . . . . Cave-ins Triggered . | . . . . . . . Exploration Rate (%) 24 | 3 37 24 20 2 67 19 Regions Visited 6 Branch Regions . Pre-discovered Areas . | . . . . . . . Known Exits Taken 3 | . 1 1 1 . . . Unknown Exits Taken 1 | 1 . . . . . . Scrap Searched . | . . . . . . . Spaces Dug 12 | . . 6 1 . . 5 Terrain Destroyed 54 | . . 6 1 . . 47 Melee 12 | . . 6 1 . . 5 Projectile 10 | . . . . . . 10 AOE 32 | . . . . . . 32 Terrain Rammed . | . . . . . . . Walls Destroyed . | . . . . . . . Machines Disabled . | . . . . . . . Actions | -11 -10 -9 -8 -7 -7 -7 --------- Run | Yrd Mat Mat Mat Fac Was Fac Total 3186 | 54 259 850 492 67 65 1399 Wait 715 | . . 368 18 1 . 328 Move 2058 | 44 228 411 397 60 65 853 Hop . | . . . . . . . Pick Up 54 | 5 4 12 8 2 . 23 Fast Attach 30 | 5 3 . 4 . . 18 Attach 24 | . 2 3 2 2 . 15 Detach . | . . . . . . . Swap 38 | . 3 13 7 1 . 14 Drop 54 | . 2 14 11 1 . 26 Fire 152 | . 16 9 44 . . 83 Melee 60 | . . 20 1 . . 39 Ram . | . . . . . . . Kick . | . . . . . . . Crush 1 | . 1 . . . . . Escape Stasis . | . . . . . . . Rewire . | . . . . . . . Trap . | . . . . . . . Miscellaneous . | . . . . . . . Route ------- -11/Scrapyard -10/Materials -9/Materials -8/Materials -7/Factory -7/Waste -7/Factory (discovered 1 exit: [*Low]) History --------- Turn | Location | Event 7 | -11/Scrapyard | Discovered new exit (range 16) 81 | -11/Scrapyard | Entered Materials 291 | -10/Materials | Discovered new exit (range 15) 312 | -10/Materials | Build established: Mutant 489 | -10/Materials | Identified exit to Materials 490 | -10/Materials | Entered another Materials area 490 | -9/Materials | Evolved 2 slots: Utility x2 912 | -9/Materials | Repaired Shotgun? 963 | -9/Materials | Build established: Scavenger-Mutant 1475 | -9/Materials | Discovered new exit (range 8) 1482 | -9/Materials | Identified exit to Materials 1484 | -9/Materials | Entered another Materials area 1484 | -8/Materials | Evolved 2 slots: Utility x2 1788 | -8/Materials | Build established: Hacker-Mutant 2140 | -8/Materials | Discovered new exit (range 7) 2159 | -8/Materials | Identified exit to Factory 2160 | -8/Materials | Entered Factory 2160 | -7/Factory | Evolved 2 slots: Utility x1, Weapon x1 2244 | -7/Factory | Sucked down chute 2244 | -7/Factory | Entered Waste 2270 | -7/Waste | Spotted C-40 Crusher 2273 | -7/Waste | Spotted C-40 Crusher 2285 | -7/Waste | Spotted C-40 Crusher 2285 | -7/Waste | Spotted C-40 Crusher 2286 | -7/Waste | Crushed by Compactor (1 part destroyed, 1 dropped) 2296 | -7/Waste | Crushed by Compactor (1 part destroyed, 2 dropped) 2299 | -7/Waste | Crushed by Compactor (1 part destroyed, 2 dropped) 2306 | -7/Waste | Discovered new exit (range 11) 2310 | -7/Waste | Identified exit to Factory 2311 | -7/Waste | Entered Factory 2330 | -7/Factory | Lost 5 parts (2n2u1w) 3148 | -7/Factory | Lost 3 parts (1p2u) 3192 | -7/Factory | Garrison activated, responded to threat 3622 | -7/Factory | Build established: Scavenger-Assassin 3901 | -7/Factory | Lost 4 parts (1p3u) 3911 | -7/Factory | First assault squad dispatched 4020 | -7/Factory | Discovered new exit (range 15) 4046 | -7/Factory | Core integrity fell below 50% 4087 | -7/Factory | Core integrity fell below 20% 4099 | -7/Factory | Destroyed by Y-54 Guardian with Flak Gun Last Messages --------------- 04057_ G-47 Trooper knocked back. 04057_ ECM Suite destroyed. 04059_ U-05 Engineer builds a Door. 04061_ Carbon-fiber Leg destroyed. 04066_ G-47 Trooper misfires. 04067_ G-47 Trooper destroyed. 04067_ Gauss Cannon destroyed. 04071_ NC< WMCNAXYG:VKR165 7RGYB5M7R 04077_ Impact Mace destroyed. 04079_ Acquired Backup Plating I. 04086_ Rnf. Deuterium Engine destroyed. 04089_ Backup Plating I destroyed. 04089_ System Shield destroyed. 04090_ Y-54 Guardian Lgt. Treads severed. 04092_ Y-54 Guardian Imp. Light Armor Plating severed. 04095_ Y-54 Guardian Lgt. Treads severed. 04097_ Chainsword follow-up attack on Y-54 Guardian. 04099_ /PSH7L/QCYIYMIIVIAVPK7AF7IH%E0D7/0 Map ----- +----------------------------------------------------+ | ???????????????????????????????????????????????? | | ???????????????????????????????????????????????? | | ???????????????????????????????????????????????? | | ????????????? #??# #???##########??## | | ????????????? #??# #???# ?? | | ????????????? #??# """ """ #???# #########?# | | ????????????? #??# """ """ ##### # #?# | | ?????????????##### """ """ + # """#?# | | ????????????? # ####### ! """#?# | | ?????????????" " # """ """ #?????# """### | | ?????????????" " # """ """ #?????# [ # | | ?????????????" " # """ """ #??######+##### | | ?????????????" " # #??# ] | | ?????????????" " ###########+##??# | | ?????????????" " ######????# #???# | | ?????????????" " # #????# #???# | | ?????????????" " # #??### ###?# """ """ | | ?????????????" " # #??# #?# ## """ """ | | ????????????? # #### T ### ## """ """ | | ?????????????##### + "" ## | | ?????????????????# # ## ###### """ """ " | | ?????????????###?# # ## #????# """ """ " | | ?????????????T ######## #### ###????# """ """ " | | ?????? ? #??##+####/######?# | | ?????? ! ####* %% #?# """ """ " | | ?????? < /Y@ [ ### """ """ " | | ?????? ####! *[ t + """ """ " | | ?????? ? #??# # | | ????????????? #??# % # """ """ " | | ????????????? #??# + """ "?" ? | | ????????????? #??# # """ "?? ? | | ????????????? #??# # ???? | | ???????????^? #??# # ???? | | ????????????? #??# # ########??? | | ?????????????????????# #??????????? | | ?????????????????????# #??????????? | | ?????????????????????##############??????????# | | ?????????????????????????????????????????????# | | ?????????????????????????????????????????????# | | ?????????????????????????????????????????????# ? | | ???????????????????????????????????????????????? | | ???????????????????????????????????????????????? | | ???????????????????????????????????????????????? | | ???????????????????????????????????????????????? | | ???????????????????????????????????????????????? | | ???????????????????????????????????????????????? | | ???????????????????????????????????????????????? | | ???????????????????????????????????????????????? | | ???????????????????????????????????????????????? | | ???????????????????????????????????????????????? | +----------------------------------------------------+ Best States ------------- Heat Dissipation 48 Energy Generation 16 Energy Capacity 290 Matter Stores 300 Matter Capacity 300 Sight Range 18 Robot Scan Range 15 Terrain Scan Density 10 ECM Strength 2 Armor Coverage 305 Evasion (%) 55 Targeting Accuracy 5 Recoil Reduction 2 Matter Filtering 30 Defensive Hacking 30 Authchip Count 1 Item Schematics ----------------- None Robot Schematics ------------------ None Fabricated ------------ Nothing Alien Tech Used ----------------- None Achievements -------------- None Challenges ------------ None Game ------ Seed ShieldPointyAutocannon Manual? 0 Play Time 00:35:50 Cumulative 52.6 hours Start 2024.04.27 @ 17:23:45 End 2024.04.27 @ 17:56:01 Sessions 1 Manual Loads 0 Difficulty Rogue Special Mode None Game No. 85 Rogue 69 Adventurer 16 Explorer 0 Win Type - Total 0 Types 0/0/0/0/0/0/0/0/0 Lore% 17 Gallery% 35 Achievement% 26 Wizard Run 0 Options --------- Layout 1 ASCII 0 Keyboard 0 Movement Mouse Keybinds 0 Fullscreen 2 Font 24/Smallcaps Map View 50x35 Zoom Use 0% Tactical HUD 1 Map Filters NONE Filters NONE Steam 1 RUN: b79132d3-165d-4166-8b65-cbab944e54bd